[Event "Titled Tuesday Blitz November 08 Early 2022"]
[White "Moaataz, Ayah"]
[Black "Goltseva, Ekaterina"]
[WhiteFideId "10615873"]
[BlackFideId "24173770"]
[WhiteElo "1993"]
[BlackElo "2200"]
[Result "1-0"]
[Round "04"]
[TimeControl "180+1"]
[Date "2022.11.09"]
[WhiteClock "0:00:13"]
[BlackClock "0:00:05"]

1. c4 {[%clk 0:03:00]}  e5 {[%clk 0:02:51]} 2. g3 {[%clk 0:02:57]}  Nc6 {[%clk 0:02:43]} 3. Bg2 {[%clk 0:02:57]}  g6 {[%clk 0:02:42]} 4. Nc3 {[%clk 0:02:58]}  Bg7 {[%clk 0:02:42]} 5. e4 {[%clk 0:02:58]}  Nge7 {[%clk 0:02:36]} 6. d3 {[%clk 0:02:58]}  d6 {[%clk 0:02:36]} 7. Bg5 {[%clk 0:02:58]}  f6 {[%clk 0:02:35]} 8. Be3 {[%clk 0:02:58]}  Be6 {[%clk 0:02:34]} 9. Qd2 {[%clk 0:02:58]}  f5 {[%clk 0:02:33]} 10. h4 {[%clk 0:02:57]}  Qd7 {[%clk 0:02:29]} 11. Nd5 {[%clk 0:02:57]}  O-O-O {[%clk 0:02:22]} 12. Bh6 {[%clk 0:02:50]}  Bxh6 {[%clk 0:02:11]} 13. Qxh6 {[%clk 0:02:51]}  Bxd5 {[%clk 0:02:11]} 14. cxd5 {[%clk 0:02:47]}  Nd4 {[%clk 0:02:07]} 15. Qd2 {[%clk 0:02:47]}  Rhf8 {[%clk 0:02:00]} 16. Ne2 {[%clk 0:02:45]}  Nxe2 {[%clk 0:01:58]} 17. Qxe2 {[%clk 0:02:46]}  Qb5 {[%clk 0:01:56]} 18. a4 {[%clk 0:02:35]}  Qb4+ {[%clk 0:01:53]} 19. Qd2 {[%clk 0:02:34]}  Qd4 {[%clk 0:01:46]} 20. O-O {[%clk 0:02:31]}  fxe4 {[%clk 0:01:42]} 21. Bxe4 {[%clk 0:02:27]}  Nxd5 {[%clk 0:01:38]} 22. Rac1 {[%clk 0:02:27]}  Nf6 {[%clk 0:01:31]} 23. Rc4 {[%clk 0:02:25]}  Nxe4 {[%clk 0:01:20]} 24. Qc2 {[%clk 0:02:25]}  Qb6 {[%clk 0:01:14]} 25. dxe4 {[%clk 0:02:24]}  c6 {[%clk 0:01:04]} 26. Rc1 {[%clk 0:02:22]}  Rf3 {[%clk 0:01:01]} 27. Rc3 {[%clk 0:02:13]}  Rdf8 {[%clk 0:00:55]} 28. Rxf3 {[%clk 0:02:11]}  Rxf3 {[%clk 0:00:55]} 29. Kg2 {[%clk 0:02:08]}  Qb3 {[%clk 0:00:38]} 30. Qd2 {[%clk 0:02:03]}  Rf6 {[%clk 0:00:35]} 31. Rc3 {[%clk 0:02:01]}  Qf7 {[%clk 0:00:34]} 32. Rd3 {[%clk 0:01:58]}  Kc7 {[%clk 0:00:32]} 33. b4 {[%clk 0:01:57]}  Qc4 {[%clk 0:00:29]} 34. Re3 {[%clk 0:01:50]}  a6 {[%clk 0:00:25]} 35. a5 {[%clk 0:01:49]}  Rf7 {[%clk 0:00:23]} 36. f3 {[%clk 0:01:47]}  Rd7 {[%clk 0:00:21]} 37. Rd3 {[%clk 0:01:47]}  Qe6 {[%clk 0:00:18]} 38. Qe3 {[%clk 0:01:43]}  Kb8 {[%clk 0:00:17]} 39. Qb6 {[%clk 0:01:39]}  Qe8 {[%clk 0:00:18]} 40. Rc3 {[%clk 0:01:36]}  Rc7 {[%clk 0:00:17]} 41. Qe3 {[%clk 0:01:35]}  Qe7 {[%clk 0:00:12]} 42. Rd3 {[%clk 0:01:35]}  Rd7 {[%clk 0:00:12]} 43. Qd2 {[%clk 0:01:34]}  Qd8 {[%clk 0:00:12]} 44. Qc3 {[%clk 0:01:31]}  Qc7 {[%clk 0:00:12]} 45. Qb3 {[%clk 0:01:26]}  Qd8 {[%clk 0:00:11]} 46. Qe6 {[%clk 0:01:25]}  Qe7 {[%clk 0:00:09]} 47. Qg8+ {[%clk 0:01:25]}  Kc7 {[%clk 0:00:08]} 48. Qc4 {[%clk 0:01:24]}  h5 {[%clk 0:00:08]} 49. Qb3 {[%clk 0:01:18]}  g5 {[%clk 0:00:08]} 50. hxg5 {[%clk 0:00:58]}  Qxg5 {[%clk 0:00:09]} 51. Qe6 {[%clk 0:00:54]}  h4 {[%clk 0:00:04]} 52. g4 {[%clk 0:00:53]}  Qf4 {[%clk 0:00:04]} 53. Kg1 {[%clk 0:00:18]}  Qg3+ {[%clk 0:00:04]} 54. Kf1 {[%clk 0:00:16]}  h3 {[%clk 0:00:04]} 55. Rd2 {[%clk 0:00:16]}  Qxf3+ {[%clk 0:00:03]} 56. Rf2 {[%clk 0:00:16]}  Qd3+ {[%clk 0:00:03]} 57. Kg1 {[%clk 0:00:15]}  Qxe4 {[%clk 0:00:03]} 58. Qh6 {[%clk 0:00:15]}  Qd3 {[%clk 0:00:02]} 59. Kh2 {[%clk 0:00:14]}  Qc3 {[%clk 0:00:02]} 60. Qxh3 {[%clk 0:00:13]}  Qxb4 {[%clk 0:00:03]} 61. Qf3 {[%clk 0:00:13]}  Qxa5 {[%clk 0:00:03]} 62. Kg2 {[%clk 0:00:13]}  Qc5 {[%clk 0:00:04]} 63. g5 {[%clk 0:00:14]}  Qd4 {[%clk 0:00:03]} 64. Qf6 {[%clk 0:00:15]}  Qd5+ {[%clk 0:00:03]} 65. Kg3 {[%clk 0:00:14]}  e4 {[%clk 0:00:04]} 66. g6 {[%clk 0:00:14]}  Qe5+ {[%clk 0:00:04]} 67. Qxe5 {[%clk 0:00:12]}  dxe5 {[%clk 0:00:05]} 68. Rf7 {[%clk 0:00:13]}  e3 {[%clk 0:00:05]} 69. Rxd7+ {[%clk 0:00:12]}  Kxd7 {[%clk 0:00:05]} 70. g7 {[%clk 0:00:13]} 1-0


[Site "https://www.chess.com"]

[Event "Titled Tuesday Blitz November 08 Early 2022"]
[White "Mohamed, Saeed Laily"]
[Black "Kohler, Aran"]
[WhiteFideId "9314946"]
[BlackFideId "1002856"]
[WhiteElo "1874"]
[BlackElo "2357"]
[Result "1-0"]
[Round "04"]
[TimeControl "180+1"]
[Date "2022.11.09"]
[WhiteClock "0:00:15"]
[BlackClock "0:00:01"]

1. d4 {[%clk 0:02:50]}  d5 {[%clk 0:02:59]} 2. Bf4 {[%clk 0:02:49]}  c5 {[%clk 0:02:59]} 3. e3 {[%clk 0:02:50]}  Nc6 {[%clk 0:02:58]} 4. Nc3 {[%clk 0:02:50]}  Nf6 {[%clk 0:02:55]} 5. Nb5 {[%clk 0:02:50]}  e5 {[%clk 0:02:22]} 6. dxe5 {[%clk 0:02:49]}  a6 {[%clk 0:02:16]} 7. Nc7+ {[%clk 0:02:13]}  Qxc7 {[%clk 0:02:14]} 8. exf6 {[%clk 0:02:13]}  Qa5+ {[%clk 0:02:11]} 9. c3 {[%clk 0:02:11]}  gxf6 {[%clk 0:01:58]} 10. Qxd5 {[%clk 0:02:08]}  Be6 {[%clk 0:01:59]} 11. Qh5 {[%clk 0:01:34]}  O-O-O {[%clk 0:01:48]} 12. Nf3 {[%clk 0:01:23]}  Rg8 {[%clk 0:01:03]} 13. Qxh7 {[%clk 0:01:21]}  Be7 {[%clk 0:00:55]} 14. Qc2 {[%clk 0:01:17]}  c4 {[%clk 0:00:53]} 15. Nd4 {[%clk 0:01:08]}  Nxd4 {[%clk 0:00:51]} 16. exd4 {[%clk 0:01:05]}  Rxd4 {[%clk 0:00:49]} 17. Be3 {[%clk 0:01:04]}  Rd7 {[%clk 0:00:42]} 18. a3 {[%clk 0:00:35]}  Qh5 {[%clk 0:00:23]} 19. Be2 {[%clk 0:00:34]}  Qh4 {[%clk 0:00:20]} 20. Bf3 {[%clk 0:00:33]}  Bd5 {[%clk 0:00:19]} 21. Qf5 {[%clk 0:00:25]}  Be6 {[%clk 0:00:13]} 22. Qe4 {[%clk 0:00:21]}  Bd5 {[%clk 0:00:12]} 23. Qxh4 {[%clk 0:00:21]}  Bxf3 {[%clk 0:00:11]} 24. gxf3 {[%clk 0:00:22]}  f5 {[%clk 0:00:11]} 25. Qh3 {[%clk 0:00:19]}  Rd5 {[%clk 0:00:10]} 26. Ke2 {[%clk 0:00:19]}  Kb8 {[%clk 0:00:08]} 27. Rad1 {[%clk 0:00:19]}  Re5 {[%clk 0:00:08]} 28. Rd4 {[%clk 0:00:17]}  Bc5 {[%clk 0:00:07]} 29. Rxc4 {[%clk 0:00:16]}  b6 {[%clk 0:00:07]} 30. f4 {[%clk 0:00:15]}  Re6 {[%clk 0:00:05]} 31. Kf3 {[%clk 0:00:15]}  Bxe3 {[%clk 0:00:04]} 32. fxe3 {[%clk 0:00:16]}  Rge8 {[%clk 0:00:04]} 33. Re1 {[%clk 0:00:16]}  Rg6 {[%clk 0:00:01]} 34. Qxf5 {[%clk 0:00:16]}  Ree6 {[%clk 0:00:01]} 35. Qxf7 {[%clk 0:00:15]} 1-0


[Site "https://www.chess.com"]

[Event "Titled Tuesday Blitz November 08 Early 2022"]
[White "Muminova, Nafisa"]
[Black "Danielyan, Vahe"]
[WhiteFideId "14201526"]
[BlackFideId "13304828"]
[WhiteElo "2258"]
[BlackElo "2423"]
[Result "0-1"]
[Round "04"]
[TimeControl "180+1"]
[Date "2022.11.09"]
[WhiteClock "0:00:17"]
[BlackClock "0:01:38"]

1. e4 {[%clk 0:03:00]}  Nf6 {[%clk 0:02:57]} 2. e5 {[%clk 0:02:56]}  Nd5 {[%clk 0:02:57]} 3. d4 {[%clk 0:02:56]}  d6 {[%clk 0:02:57]} 4. Nf3 {[%clk 0:02:57]}  Bg4 {[%clk 0:02:56]} 5. Be2 {[%clk 0:02:54]}  e6 {[%clk 0:02:57]} 6. O-O {[%clk 0:02:53]}  Nc6 {[%clk 0:02:57]} 7. exd6 {[%clk 0:02:51]}  Bxd6 {[%clk 0:02:54]} 8. h3 {[%clk 0:02:47]}  h5 {[%clk 0:02:53]} 9. Nc3 {[%clk 0:02:39]}  Nxc3 {[%clk 0:02:51]} 10. bxc3 {[%clk 0:02:38]}  Qf6 {[%clk 0:02:49]} 11. Be3 {[%clk 0:01:57]}  Ne7 {[%clk 0:02:26]} 12. Ne5 {[%clk 0:01:23]}  Bxe2 {[%clk 0:02:25]} 13. Qxe2 {[%clk 0:01:23]}  Bxe5 {[%clk 0:02:25]} 14. dxe5 {[%clk 0:01:22]}  Qxe5 {[%clk 0:02:26]} 15. Rab1 {[%clk 0:01:21]}  b6 {[%clk 0:02:25]} 16. Rb5 {[%clk 0:01:13]}  c5 {[%clk 0:02:23]} 17. Qf3 {[%clk 0:01:08]}  O-O {[%clk 0:02:22]} 18. c4 {[%clk 0:01:05]}  Qf5 {[%clk 0:02:19]} 19. Qg3 {[%clk 0:01:03]}  Ng6 {[%clk 0:02:18]} 20. Rb3 {[%clk 0:01:00]}  Rad8 {[%clk 0:02:17]} 21. Bg5 {[%clk 0:00:58]}  Rd4 {[%clk 0:02:16]} 22. Rf3 {[%clk 0:00:53]}  h4 {[%clk 0:02:15]} 23. Bxh4 {[%clk 0:00:50]}  Qxc2 {[%clk 0:02:12]} 24. Bg5 {[%clk 0:00:46]}  Qxc4 {[%clk 0:02:12]} 25. Re1 {[%clk 0:00:34]}  Qd5 {[%clk 0:02:10]} 26. h4 {[%clk 0:00:29]}  Rd1 {[%clk 0:02:02]} 27. Rxd1 {[%clk 0:00:28]}  Qxd1+ {[%clk 0:02:03]} 28. Kh2 {[%clk 0:00:28]}  Qd5 {[%clk 0:01:48]} 29. h5 {[%clk 0:00:26]}  f6 {[%clk 0:01:41]} 30. hxg6 {[%clk 0:00:17]}  Qxg5 {[%clk 0:01:40]} 31. Qh3 {[%clk 0:00:17]}  Qh6 {[%clk 0:01:36]} 32. Re3 {[%clk 0:00:13]}  Qxh3+ {[%clk 0:01:36]} 33. gxh3 {[%clk 0:00:14]}  e5 {[%clk 0:01:36]} 34. h4 {[%clk 0:00:14]}  Rc8 {[%clk 0:01:36]} 35. h5 {[%clk 0:00:15]}  c4 {[%clk 0:01:37]} 36. Rc3 {[%clk 0:00:15]}  b5 {[%clk 0:01:37]} 37. Kg3 {[%clk 0:00:15]}  b4 {[%clk 0:01:37]} 38. Rc2 {[%clk 0:00:16]}  c3 {[%clk 0:01:38]} 39. Kf3 {[%clk 0:00:16]}  a5 {[%clk 0:01:39]} 40. Ke3 {[%clk 0:00:16]}  a4 {[%clk 0:01:39]} 41. Kd3 {[%clk 0:00:16]}  e4+ {[%clk 0:01:37]} 42. Kxe4 {[%clk 0:00:16]}  b3 {[%clk 0:01:37]} 43. axb3 {[%clk 0:00:17]}  axb3 {[%clk 0:01:38]} 44. Rc1 {[%clk 0:00:17]}  b2 {[%clk 0:01:38]} 0-1


[Site "https://www.chess.com"]

[Event "Titled Tuesday Blitz November 08 Early 2022"]
[White "Namitbir Singh Walia"]
[Black "Krysa, Leandro"]
[WhiteFideId "35071068"]
[BlackFideId "116807"]
[WhiteElo "2239"]
[BlackElo "2485"]
[Result "0-1"]
[Round "04"]
[TimeControl "180+1"]
[Date "2022.11.09"]
[WhiteClock "0:00:04"]
[BlackClock "0:00:09"]

1. e4 {[%clk 0:03:00]}  g6 {[%clk 0:02:59]} 2. h4 {[%clk 0:02:58]}  Nf6 {[%clk 0:02:58]} 3. e5 {[%clk 0:02:57]}  Nh5 {[%clk 0:02:59]} 4. d4 {[%clk 0:02:55]}  d6 {[%clk 0:02:57]} 5. Nf3 {[%clk 0:02:50]}  Bg4 {[%clk 0:02:41]} 6. Be2 {[%clk 0:02:45]}  Nc6 {[%clk 0:02:40]} 7. c3 {[%clk 0:02:36]}  Bg7 {[%clk 0:02:27]} 8. exd6 {[%clk 0:02:33]}  Qxd6 {[%clk 0:02:14]} 9. Ng5 {[%clk 0:02:26]}  Bxe2 {[%clk 0:02:10]} 10. Qxe2 {[%clk 0:02:24]}  O-O {[%clk 0:02:09]} 11. Ne4 {[%clk 0:02:22]}  Qd5 {[%clk 0:02:04]} 12. O-O {[%clk 0:02:13]}  e5 {[%clk 0:02:03]} 13. dxe5 {[%clk 0:02:09]}  Qxe5 {[%clk 0:02:02]} 14. Nbd2 {[%clk 0:01:59]}  Rfe8 {[%clk 0:01:59]} 15. Qf3 {[%clk 0:01:54]}  Rad8 {[%clk 0:01:53]} 16. Ng5 {[%clk 0:01:48]}  Qf4 {[%clk 0:01:39]} 17. g3 {[%clk 0:01:37]}  Qxf3 {[%clk 0:01:35]} 18. Ndxf3 {[%clk 0:01:36]}  h6 {[%clk 0:01:34]} 19. Nh3 {[%clk 0:01:35]}  Nf6 {[%clk 0:01:33]} 20. Kg2 {[%clk 0:01:29]}  Ng4 {[%clk 0:01:27]} 21. Bf4 {[%clk 0:01:27]}  Re2 {[%clk 0:01:23]} 22. Rab1 {[%clk 0:01:04]}  Rd7 {[%clk 0:01:22]} 23. Rfe1 {[%clk 0:00:58]}  Rxe1 {[%clk 0:01:15]} 24. Rxe1 {[%clk 0:00:56]}  Nf6 {[%clk 0:01:11]} 25. Ne5 {[%clk 0:00:51]}  Nxe5 {[%clk 0:01:10]} 26. Bxe5 {[%clk 0:00:51]}  Ng4 {[%clk 0:01:05]} 27. Bxg7 {[%clk 0:00:50]}  Kxg7 {[%clk 0:01:06]} 28. Re2 {[%clk 0:00:50]}  Kf6 {[%clk 0:01:01]} 29. Ng1 {[%clk 0:00:48]}  Ne5 {[%clk 0:00:59]} 30. Nf3 {[%clk 0:00:44]}  Nc4 {[%clk 0:00:48]} 31. b3 {[%clk 0:00:41]}  Nb6 {[%clk 0:00:35]} 32. Ne5 {[%clk 0:00:40]}  Rd8 {[%clk 0:00:34]} 33. Ng4+ {[%clk 0:00:39]}  Kg7 {[%clk 0:00:34]} 34. c4 {[%clk 0:00:38]}  h5 {[%clk 0:00:32]} 35. Nh2 {[%clk 0:00:37]}  a5 {[%clk 0:00:28]} 36. Nf3 {[%clk 0:00:30]}  a4 {[%clk 0:00:28]} 37. Re3 {[%clk 0:00:28]}  a3 {[%clk 0:00:26]} 38. Re2 {[%clk 0:00:27]}  Rd1 {[%clk 0:00:26]} 39. Rd2 {[%clk 0:00:24]}  Rb1 {[%clk 0:00:23]} 40. Ne5 {[%clk 0:00:17]}  Rb2 {[%clk 0:00:21]} 41. Nf3 {[%clk 0:00:17]}  Kf6 {[%clk 0:00:20]} 42. Kf1 {[%clk 0:00:16]}  Ke7 {[%clk 0:00:17]} 43. Ke2 {[%clk 0:00:16]}  Rb1 {[%clk 0:00:17]} 44. Rd1 {[%clk 0:00:15]}  Rb2+ {[%clk 0:00:16]} 45. Rd2 {[%clk 0:00:15]}  Rb1 {[%clk 0:00:16]} 46. Rd1 {[%clk 0:00:15]}  Rxd1 {[%clk 0:00:16]} 47. Kxd1 {[%clk 0:00:15]}  Nd7 {[%clk 0:00:16]} 48. Kc2 {[%clk 0:00:14]}  Nf6 {[%clk 0:00:16]} 49. Nd2 {[%clk 0:00:13]}  Ng4 {[%clk 0:00:15]} 50. f3 {[%clk 0:00:13]}  Ne3+ {[%clk 0:00:16]} 51. Kd3 {[%clk 0:00:13]}  Nf5 {[%clk 0:00:16]} 52. Nf1 {[%clk 0:00:12]}  Kd6 {[%clk 0:00:14]} 53. Kc3 {[%clk 0:00:12]}  c5 {[%clk 0:00:13]} 54. b4 {[%clk 0:00:12]}  b6 {[%clk 0:00:13]} 55. b5 {[%clk 0:00:12]}  Nd4 {[%clk 0:00:12]} 56. Nd2 {[%clk 0:00:09]}  Ne2+ {[%clk 0:00:12]} 57. Kb3 {[%clk 0:00:09]}  Nxg3 {[%clk 0:00:13]} 58. Kxa3 {[%clk 0:00:10]}  Nf5 {[%clk 0:00:13]} 59. Ne4+ {[%clk 0:00:08]}  Ke7 {[%clk 0:00:14]} 60. Kb3 {[%clk 0:00:06]}  Nxh4 {[%clk 0:00:14]} 61. Nd2 {[%clk 0:00:06]}  Nf5 {[%clk 0:00:13]} 62. a4 {[%clk 0:00:06]}  h4 {[%clk 0:00:14]} 63. a5 {[%clk 0:00:04]}  bxa5 {[%clk 0:00:14]} 64. Ka4 {[%clk 0:00:04]}  Ne3 {[%clk 0:00:13]} 65. Ne4 {[%clk 0:00:03]}  Nxc4 {[%clk 0:00:11]} 66. Nxc5 {[%clk 0:00:02]}  h3 {[%clk 0:00:10]} 67. Ne4 {[%clk 0:00:02]}  h2 {[%clk 0:00:10]} 68. Nf2 {[%clk 0:00:03]}  Kd6 {[%clk 0:00:10]} 69. b6 {[%clk 0:00:03]}  Nxb6+ {[%clk 0:00:09]} 70. Kxa5 {[%clk 0:00:04]}  Nd5 {[%clk 0:00:10]} 71. Kb5 {[%clk 0:00:04]}  Ke5 {[%clk 0:00:09]} 72. Kc4 {[%clk 0:00:04]}  Kf4 {[%clk 0:00:09]} 73. Kxd5 {[%clk 0:00:04]}  Kxf3 {[%clk 0:00:09]} 74. Nh1 {[%clk 0:00:04]}  Kg2 {[%clk 0:00:09]} 0-1


[Site "https://www.chess.com"]

[Event "Titled Tuesday Blitz November 08 Early 2022"]
[White "Noboa Silva, Kevin"]
[Black "Sarana, Alexey"]
[WhiteFideId "3618471"]
[BlackFideId "24133795"]
[WhiteElo "2631"]
[BlackElo "2999"]
[Result "0-1"]
[Round "04"]
[TimeControl "180+1"]
[Date "2022.11.09"]
[WhiteClock "0:00:02"]
[BlackClock "0:00:13"]

1. d4 {[%clk 0:03:00]}  Nf6 {[%clk 0:02:59]} 2. c4 {[%clk 0:03:00]}  e6 {[%clk 0:03:00]} 3. Nc3 {[%clk 0:03:00]}  d5 {[%clk 0:03:00]} 4. cxd5 {[%clk 0:03:00]}  exd5 {[%clk 0:03:01]} 5. Bg5 {[%clk 0:03:00]}  c6 {[%clk 0:03:00]} 6. e3 {[%clk 0:03:00]}  Bf5 {[%clk 0:03:01]} 7. Qf3 {[%clk 0:02:58]}  Bg6 {[%clk 0:03:01]} 8. Bxf6 {[%clk 0:02:58]}  Qxf6 {[%clk 0:03:02]} 9. Qxf6 {[%clk 0:02:58]}  gxf6 {[%clk 0:03:03]} 10. Nh3 {[%clk 0:02:56]}  Bd6 {[%clk 0:03:02]} 11. Kd2 {[%clk 0:02:55]}  Nd7 {[%clk 0:03:02]} 12. Bd3 {[%clk 0:02:55]}  a5 {[%clk 0:02:56]} 13. g3 {[%clk 0:02:53]}  Nb6 {[%clk 0:02:54]} 14. Nf4 {[%clk 0:02:51]}  a4 {[%clk 0:02:50]} 15. h4 {[%clk 0:02:46]}  Bxf4 {[%clk 0:02:48]} 16. gxf4 {[%clk 0:02:45]}  Bxd3 {[%clk 0:02:48]} 17. Kxd3 {[%clk 0:02:45]}  Kd7 {[%clk 0:02:46]} 18. b3 {[%clk 0:02:45]}  Rhg8 {[%clk 0:02:44]} 19. Rhg1 {[%clk 0:02:42]}  Ke6 {[%clk 0:02:27]} 20. Rxg8 {[%clk 0:02:09]}  Rxg8 {[%clk 0:02:25]} 21. bxa4 {[%clk 0:02:09]}  Nc4 {[%clk 0:02:23]} 22. Rb1 {[%clk 0:02:08]}  Rg2 {[%clk 0:02:11]} 23. Ke2 {[%clk 0:02:02]}  b6 {[%clk 0:02:09]} 24. Kf3 {[%clk 0:01:53]}  Rg8 {[%clk 0:02:08]} 25. Rc1 {[%clk 0:01:40]}  f5 {[%clk 0:01:44]} 26. Ke2 {[%clk 0:01:16]}  Rg4 {[%clk 0:01:40]} 27. Rh1 {[%clk 0:01:15]}  Kd6 {[%clk 0:01:38]} 28. Nb1 {[%clk 0:01:09]}  Rg2 {[%clk 0:01:31]} 29. Kf3 {[%clk 0:01:03]}  Rg8 {[%clk 0:01:30]} 30. Ke2 {[%clk 0:00:58]}  h6 {[%clk 0:01:22]} 31. Rc1 {[%clk 0:00:52]}  Rg4 {[%clk 0:01:18]} 32. Rh1 {[%clk 0:00:52]}  Rg2 {[%clk 0:01:17]} 33. Kf3 {[%clk 0:00:45]}  Rg8 {[%clk 0:01:17]} 34. Ke2 {[%clk 0:00:45]}  Kc7 {[%clk 0:01:12]} 35. Rc1 {[%clk 0:00:44]}  Rg4 {[%clk 0:01:06]} 36. Rh1 {[%clk 0:00:43]}  Rg2 {[%clk 0:01:07]} 37. Kf1 {[%clk 0:00:40]}  Rg8 {[%clk 0:01:07]} 38. Rg1 {[%clk 0:00:40]}  Rxg1+ {[%clk 0:00:56]} 39. Kxg1 {[%clk 0:00:40]}  Kb7 {[%clk 0:00:57]} 40. Nc3 {[%clk 0:00:39]}  Ka6 {[%clk 0:00:57]} 41. Kf1 {[%clk 0:00:35]}  Ka5 {[%clk 0:00:57]} 42. Ke2 {[%clk 0:00:35]}  Kb4 {[%clk 0:00:58]} 43. Kd3 {[%clk 0:00:29]}  Ka3 {[%clk 0:00:50]} 44. Kc2 {[%clk 0:00:25]}  Nd6 {[%clk 0:00:49]} 45. f3 {[%clk 0:00:19]}  f6 {[%clk 0:00:45]} 46. Kb1 {[%clk 0:00:19]}  Nc4 {[%clk 0:00:45]} 47. Ne2 {[%clk 0:00:12]}  Nxe3 {[%clk 0:00:44]} 48. Ng3 {[%clk 0:00:12]}  Kxa4 {[%clk 0:00:42]} 49. Nh5 {[%clk 0:00:12]}  c5 {[%clk 0:00:35]} 50. dxc5 {[%clk 0:00:12]}  bxc5 {[%clk 0:00:36]} 51. Nxf6 {[%clk 0:00:12]}  d4 {[%clk 0:00:37]} 52. Ng8 {[%clk 0:00:12]}  d3 {[%clk 0:00:36]} 53. Kc1 {[%clk 0:00:12]}  c4 {[%clk 0:00:36]} 54. Kd2 {[%clk 0:00:11]}  Ka3 {[%clk 0:00:34]} 55. Nf6 {[%clk 0:00:05]}  Kb2 {[%clk 0:00:12]} 56. Kxe3 {[%clk 0:00:04]}  Kc2 {[%clk 0:00:13]} 57. Nd5 {[%clk 0:00:02]}  d2 {[%clk 0:00:13]} 58. Nb4+ {[%clk 0:00:02]}  Kc1 {[%clk 0:00:13]} 0-1


[Site "https://www.chess.com"]

[Event "Titled Tuesday Blitz November 08 Early 2022"]
[White "Nugumanov, Bakhtiyar"]
[Black "Cabezas Solano, David Alejandro"]
[WhiteFideId "13701797"]
[BlackFideId "6507522"]
[WhiteElo "2287"]
[BlackElo "2035"]
[Result "0-1"]
[Round "04"]
[TimeControl "180+1"]
[Date "2022.11.09"]
[WhiteClock "0:00:03"]
[BlackClock "0:00:59"]

1. Nf3 {[%clk 0:02:57]}  d5 {[%clk 0:02:57]} 2. g3 {[%clk 0:02:57]}  Nf6 {[%clk 0:02:57]} 3. Bg2 {[%clk 0:02:57]}  e6 {[%clk 0:02:56]} 4. c4 {[%clk 0:02:58]}  d4 {[%clk 0:02:56]} 5. O-O {[%clk 0:02:57]}  c5 {[%clk 0:02:54]} 6. e3 {[%clk 0:02:53]}  Nc6 {[%clk 0:02:53]} 7. d3 {[%clk 0:02:20]}  Be7 {[%clk 0:02:42]} 8. exd4 {[%clk 0:02:10]}  cxd4 {[%clk 0:02:42]} 9. a3 {[%clk 0:02:04]}  a5 {[%clk 0:02:41]} 10. Re1 {[%clk 0:01:57]}  O-O {[%clk 0:02:20]} 11. Bf4 {[%clk 0:01:56]}  Nd7 {[%clk 0:02:11]} 12. Nbd2 {[%clk 0:01:35]}  Nc5 {[%clk 0:02:04]} 13. Ne4 {[%clk 0:01:31]}  f6 {[%clk 0:01:58]} 14. Nxc5 {[%clk 0:00:50]}  Bxc5 {[%clk 0:01:59]} 15. Bd2 {[%clk 0:00:51]}  e5 {[%clk 0:01:55]} 16. b4 {[%clk 0:00:15]}  axb4 {[%clk 0:01:46]} 17. axb4 {[%clk 0:00:16]}  Rxa1 {[%clk 0:01:43]} 18. Qxa1 {[%clk 0:00:17]}  Bxb4 {[%clk 0:01:40]} 19. Bxb4 {[%clk 0:00:16]}  Nxb4 {[%clk 0:01:41]} 20. Qb1 {[%clk 0:00:08]}  Qa5 {[%clk 0:01:32]} 21. Nd2 {[%clk 0:00:08]}  Bf5 {[%clk 0:01:26]} 22. Nb3 {[%clk 0:00:07]}  Qa3 {[%clk 0:01:19]} 23. Be4 {[%clk 0:00:05]}  Bxe4 {[%clk 0:01:16]} 24. Rxe4 {[%clk 0:00:06]}  Rb8 {[%clk 0:01:07]} 25. f4 {[%clk 0:00:04]}  Nc6 {[%clk 0:01:00]} 26. Nc5 {[%clk 0:00:03]}  Qxc5 {[%clk 0:00:59]} 0-1


[Site "https://www.chess.com"]

[Event "Titled Tuesday Blitz November 08 Early 2022"]
[White "Omariev, Maksim"]
[Black "Cramling Bellon, Anna"]
[WhiteFideId "4193423"]
[BlackFideId "32009232"]
[WhiteElo "2411"]
[BlackElo "1972"]
[Result "1-0"]
[Round "04"]
[TimeControl "180+1"]
[Date "2022.11.09"]
[WhiteClock "0:00:33"]
[BlackClock "0:00:04"]

1. g4 {[%clk 0:02:39]}  d5 {[%clk 0:02:53]} 2. Bg2 {[%clk 0:02:39]}  c6 {[%clk 0:02:52]} 3. h3 {[%clk 0:02:31]}  e5 {[%clk 0:02:52]} 4. d4 {[%clk 0:02:06]}  e4 {[%clk 0:02:40]} 5. c4 {[%clk 0:02:06]}  Bd6 {[%clk 0:02:25]} 6. Nc3 {[%clk 0:02:05]}  Ne7 {[%clk 0:02:18]} 7. Bg5 {[%clk 0:01:57]}  f6 {[%clk 0:02:09]} 8. Be3 {[%clk 0:01:50]}  Be6 {[%clk 0:01:30]} 9. cxd5 {[%clk 0:01:41]}  cxd5 {[%clk 0:01:26]} 10. Qb3 {[%clk 0:01:41]}  Qd7 {[%clk 0:01:14]} 11. Nb5 {[%clk 0:01:32]}  Nbc6 {[%clk 0:00:51]} 12. Nxd6+ {[%clk 0:01:23]}  Qxd6 {[%clk 0:00:52]} 13. O-O-O {[%clk 0:01:17]}  O-O {[%clk 0:00:47]} 14. Kb1 {[%clk 0:01:18]}  a5 {[%clk 0:00:43]} 15. f3 {[%clk 0:00:56]}  Qg3 {[%clk 0:00:17]} 16. Bf1 {[%clk 0:00:55]}  a4 {[%clk 0:00:13]} 17. Qa3 {[%clk 0:00:54]}  b5 {[%clk 0:00:12]} 18. Qc5 {[%clk 0:00:48]}  Rfc8 {[%clk 0:00:06]} 19. h4 {[%clk 0:00:47]}  Ng6 {[%clk 0:00:04]} 20. h5 {[%clk 0:00:42]}  Nf8 {[%clk 0:00:05]} 21. h6 {[%clk 0:00:41]}  g6 {[%clk 0:00:05]} 22. g5 {[%clk 0:00:40]}  fxg5 {[%clk 0:00:05]} 23. Nh3 {[%clk 0:00:38]}  Qc7 {[%clk 0:00:05]} 24. Nxg5 {[%clk 0:00:38]}  Qa7 {[%clk 0:00:05]} 25. Nxe6 {[%clk 0:00:37]}  Qxc5 {[%clk 0:00:04]} 26. Nxc5 {[%clk 0:00:37]}  b4 {[%clk 0:00:04]} 27. Bh3 {[%clk 0:00:36]}  Rd8 {[%clk 0:00:04]} 28. fxe4 {[%clk 0:00:33]}  dxe4 {[%clk 0:00:04]} 29. d5 {[%clk 0:00:34]}  Ne5 {[%clk 0:00:04]} 30. Ne6 {[%clk 0:00:32]}  Nxe6 {[%clk 0:00:03]} 31. Bxe6+ {[%clk 0:00:33]}  Kh8 {[%clk 0:00:04]} 32. Bd4 {[%clk 0:00:33]} 1-0


[Site "https://www.chess.com"]